fUST/lending_fUST_20251216
["ID","MTS","AMOUNT","RATE_DAILY","PERIOD"]
[398571505,1765843843302,-500.0,0.00013698,2]
[398571506,1765843843311,-500.0,0.00013698,2]
[398571507,1765843843321,-500.0,0.00013698,2]
[398571508,1765843843330,-500.0,0.00013698,2]
[398571509,1765843843339,-500.0,0.00013698,2]
[398571510,1765843843348,-500.0,0.00013698,2]
[398571511,1765843843357,-547.11675591,0.00013698,2]
[398571512,1765843843366,-500.0,0.00013698,2]
[398571513,1765843843375,-500.0,0.00013698,2]
[398571514,1765843843384,-500.0,0.00013698,2]
[398571515,1765843843394,-500.0,0.00013698,2]
[398571516,1765843843403,-500.0,0.00013698,2]
[398571517,1765843843412,-500.0,0.00013698,2]
[398571518,1765843843421,-500.0,0.00013698,2]
[398571519,1765843843430,-500.0,0.00013698,2]
[398571520,1765843843440,-500.0,0.00013698,2]
[398571521,1765843843449,-500.0,0.00013698,2]
[398571522,1765843843459,-359.60080883,0.00013698,2]
[398571523,1765843843468,-151.0,0.00013698,2]
[398571524,1765843843477,-151.0,0.00013698,2]
[398571525,1765843843486,-151.0,0.00013698,2]
[398571526,1765843843495,-500.0,0.00013698,2]
[398571527,1765843843504,-500.0,0.00013698,2]
[398571528,1765843843513,-500.0,0.00013698,2]
[398571529,1765843843522,-500.0,0.00013698,2]
[398571530,1765843843532,-500.0,0.00013698,2]
[398571531,1765843843542,-500.0,0.00013698,2]
[398571532,1765843843551,-500.0,0.00013698,2]
[398571533,1765843843560,-1469.617214,0.00013699,2]
[398571534,1765843843571,-12756.2412117,0.00013699,2]
[398571535,1765843843581,-1000.0,0.00013699,2]
[398571536,1765843843590,-259.462915,0.00013699,2]
[398571537,1765843843599,-156.515192,0.00013699,2]
[398571538,1765843843609,-500.0,0.00013699,2]
[398571539,1765843843618,-500.0,0.00013699,2]
[398571540,1765843843627,-500.0,0.00013699,2]
[398571541,1765843843636,-159.86610879,0.00013699,2]
[398571542,1765843843648,-500.0,0.00013699,2]
[398571543,1765843843657,-501.83755093,0.00013699,2]
[398571544,1765843843666,-503.78733681,0.00013699,2]
[398571545,1765843843676,-303.37852348,0.00013699,2]
[398571546,1765843843686,-500.0,0.00013699,2]
[398571547,1765843843695,-501.00194259,0.00013699,2]
[398571548,1765843843704,-500.36932575,0.00013699,2]
[398571549,1765843843713,-460.01800891,0.00013699,2]
[398571550,1765843843726,-40.99098024,0.00013699,2]
[398571551,1765843843736,-501.634338,0.00013699,2]
[398571552,1765843843745,-500.0,0.00013699,2]
[398571553,1765843843754,-369.37468176,0.00013699,2]
[398571554,1765843843766,-130.62531824,0.00013699,2]
[398571555,1765843843775,-500.0,0.00013699,2]
[398571556,1765843843784,-296.04452994,0.00013699,2]
[398571557,1765843843794,-564.53865807,0.00013699,2]
[398571558,1765843843803,-503.09147645,0.00013699,2]
[398571559,1765843843813,-159.47032203,0.00013699,2]
[398571560,1765843843822,-500.0,0.00013699,2]
[398571561,1765843843831,-500.61034243,0.00013699,2]
[398571562,1765843843840,-500.0,0.00013699,2]
[398571563,1765843843850,-500.0,0.00013699,2]
[398571564,1765843843859,-500.0,0.00013699,2]
[398571565,1765843843868,-500.0,0.00013699,2]
[398571566,1765843843877,-500.0,0.00013699,2]
[398571567,1765843843886,-160.84872787,0.00013699,2]
[398571568,1765843843896,-500.25158449,0.00013699,2]
[398571569,1765843843905,-416.01184806,0.00013699,2]
[398571570,1765843843914,-500.0,0.00013699,2]
[398571571,1765843843924,-500.0,0.00013699,2]
[398571572,1765843843933,-500.51607935,0.00013699,2]
[398571573,1765843843942,-500.91291266,0.00013699,2]
[398571574,1765843843951,-500.0,0.00013699,2]
[398571575,1765843843960,-500.63083034,0.00013699,2]
[398571576,1765843843970,-500.0,0.00013699,2]
[398571577,1765843843979,-220.13561971,0.00013699,2]
[398571578,1765843843988,-500.0,0.00013699,2]
[398571579,1765843843997,-500.0,0.00013699,2]
[398571580,1765843844006,-500.0,0.00013699,2]
[398571581,1765843844015,-500.0,0.00013699,2]
[398571582,1765843844024,-500.24895149,0.00013699,2]
[398571583,1765843844033,-500.0,0.00013699,2]
[398571584,1765843844043,-500.0,0.00013699,2]
[398571585,1765843844051,-500.0,0.00013699,2]
[398571586,1765843844060,-500.0,0.00013699,2]
[398571587,1765843844069,-500.0,0.00013699,2]
[398571588,1765843844079,-500.0,0.00013699,2]
[398571589,1765843844087,-500.0,0.00013699,2]
[398571590,1765843844096,-500.0,0.00013699,2]
[398571591,1765843844106,-500.0,0.00013699,2]
[398571592,1765843844115,-320.14405698,0.00013699,2]
[398571593,1765843844127,-179.85594302,0.00013699,2]
[398571594,1765843844136,-116.18405698,0.00013699,2]
[398571595,1765843844147,-407.66325749,0.00013699,2]
[398571596,1765843844158,-517.86458158,0.00013699,2]
[398571597,1765843844167,-173.06313463,0.00013699,2]
[398571598,1765843844176,-500.0,0.00013699,2]
[398571599,1765843844186,-500.0,0.00013699,2]
[398571600,1765843844195,-500.0,0.00013699,2]
[398571601,1765843844204,-455.1164558,0.00013699,2]
[398571602,1765843844213,-159.13011771,0.00013699,2]
[398571603,1765843844222,-500.0,0.00013699,2]
[398571604,1765843844231,-164.73763081,0.00013699,2]
[398571605,1765843844240,-500.0,0.00013699,2]
[398571606,1765843844250,-500.28539159,0.00013699,2]
[398571607,1765843844259,-500.0,0.00013699,2]
[398571608,1765843844267,-500.0,0.00013699,2]
[398571609,1765843844276,-163.36370975,0.00013699,2]
[398571610,1765843844285,-635.58567762,0.00013699,2]
[398571611,1765843844294,-500.0,0.00013699,2]
[398571612,1765843844303,-533.87164809,0.00013699,2]
[398571613,1765843844312,-157.82233225,0.00013699,2]
[398571614,1765843844321,-500.0,0.00013699,2]
[398571615,1765843844330,-274.89606268,0.00013699,2]
[398571624,1765843846808,-438.32801206,0.0001015,2]
[398571625,1765843846820,-61.67198794,0.0001015,2]
[398571626,1765843846829,-500.0,0.0001015,2]
[398571627,1765843846839,-500.0,0.0001015,2]
[398571628,1765843846848,-500.0,0.0001015,2]
[398571629,1765843846858,-500.0,0.0001015,2]
[398571630,1765843846867,-500.0,0.0001015,2]
[398571631,1765843846876,-500.0,0.0001015,2]
[398571632,1765843846886,-500.0,0.0001015,2]
[398571633,1765843846895,-500.0,0.0001015,2]
[398571634,1765843846905,-500.0,0.0001015,2]
[398571635,1765843846914,-500.0,0.0001015,2]
[398571636,1765843846924,-500.0,0.0001015,2]
[398571637,1765843846933,-500.0,0.0001015,2]
[398571638,1765843846942,-396.97541787,0.0001015,2]
[398571639,1765843846951,-500.0,0.0001015,2]
[398571640,1765843846961,-500.0,0.0001015,2]
[398571641,1765843846970,-500.0,0.0001015,2]
[398571642,1765843846979,-500.0,0.0001015,2]
[398571643,1765843846988,-500.0,0.0001015,2]
[398571644,1765843846997,-278.67926394,0.0001015,2]
[398571645,1765843847006,-500.0,0.0001015,2]
[398571646,1765843847015,-562.07900743,0.0001015,2]
[398571647,1765843847025,-500.0,0.0001015,2]
[398571648,1765843847034,-219.00688863,0.0001015,2]
[398571649,1765843847045,-500.0,0.0001015,2]
[398571650,1765843847054,-500.0,0.0001015,2]
[398571651,1765843847064,-500.0,0.0001015,2]
[398571652,1765843847073,-500.0,0.0001015,2]
[398571653,1765843847083,-500.0,0.0001015,2]
[398571654,1765843847092,-500.0,0.0001015,2]
[398571655,1765843847101,-500.0,0.0001015,2]
[398571656,1765843847110,-500.0,0.0001015,2]
[398571657,1765843847119,-500.0,0.0001015,2]
[398571658,1765843847128,-500.0,0.0001015,2]
[398571659,1765843847137,-500.0,0.0001015,2]
[398571660,1765843847146,-500.0,0.0001015,2]
[398571661,1765843847155,-500.0,0.0001015,2]
[398571662,1765843847165,-500.0,0.0001015,2]
[398571663,1765843847174,-500.0,0.0001015,2]
[398571664,1765843847183,-500.0,0.0001015,2]
[398571665,1765843847192,-500.0,0.0001015,2]
[398571666,1765843847201,-500.0,0.0001015,2]
[398571667,1765843847211,-500.0,0.00010959,2]
[398571668,1765843847220,-500.0,0.00010959,2]
[398571669,1765843847230,-500.0,0.00010959,2]
[398571670,1765843847239,-500.0,0.00010959,2]
[398571671,1765843847248,-500.0,0.00010959,2]
[398571672,1765843847258,-500.0,0.00010959,2]
[398571673,1765843847267,-500.0,0.00010959,2]
[398571674,1765843847276,-500.0,0.00010959,2]
[398571675,1765843847285,-500.0,0.00010959,2]
[398571676,1765843847294,-500.0,0.00010959,2]
[398571677,1765843847303,-500.0,0.00010959,2]
[398571678,1765843847313,-500.0,0.00010959,2]
[398571679,1765843847322,-500.0,0.00010959,2]
[398571680,1765843847332,-500.0,0.00010959,2]
[398571681,1765843847341,-500.0,0.00010959,2]
[398571682,1765843847350,-500.0,0.00010959,2]
[398571683,1765843847360,-500.0,0.00010959,2]
[398571684,1765843847369,-500.0,0.00010959,2]
[398571685,1765843847377,-500.0,0.00010959,2]
[398571686,1765843847387,-500.0,0.00010959,2]
[398571687,1765843847396,-225.10393732,0.00013699,2]
[398571688,1765843847405,-177.75979783,0.00013699,2]
[398571689,1765843847414,-500.60528936,0.00013699,2]
[398571690,1765843847424,-513.4970685,0.00013699,2]
[398571691,1765843847433,-500.0,0.00013699,2]
[398571692,1765843847443,-500.0,0.00013699,2]
[398571693,1765843847453,-500.0,0.00013699,2]
[398571694,1765843847462,-500.0,0.00013699,2]
[398571695,1765843847472,-500.0,0.00013699,2]
[398571696,1765843847702,-500.21082262,0.00013699,2]
[398571697,1765843847713,-500.0,0.00013699,2]
[398571698,1765843847722,-500.0,0.00013699,2]
[398571699,1765843847732,-500.0,0.00013699,2]
[398571700,1765843847741,-500.0,0.00013699,2]
[398571701,1765843847751,-500.0,0.00013699,2]
[398571702,1765843847761,-500.0,0.00013699,2]
[398571703,1765843847770,-500.0,0.00013699,2]
[398571704,1765843847779,-151.0,0.00013699,2]
[398571705,1765843847789,-152.579751,0.00013699,2]
[398571706,1765843847799,-151.0,0.00013699,2]
[398571707,1765843847808,-151.64181,0.00013699,2]
[398571708,1765843847817,-151.0,0.00013699,2]
[398571709,1765843847827,-151.0,0.00013699,2]
[398571710,1765843847836,-281.222392,0.00013699,2]
[398571711,1765843847845,-151.0,0.00013699,2]
[398571712,1765843847854,-151.0,0.00013699,2]
[398571713,1765843847863,-151.0,0.00013699,2]
[398571714,1765843847872,-345.74,0.000137,2]
[398571715,1765843847881,-345.74,0.000137,2]
[398571716,1765843847890,-160.0,0.00013752,2]
[398571717,1765843847899,-1000.0,0.00013782,2]
[398571718,1765843847908,-345.74,0.000138,2]
[398571719,1765843847917,-345.74,0.000138,2]
[398571720,1765843847926,-433.72408148,0.00013821,2]
[398571721,1765843847935,-1000.0,0.00013821,2]
[398571722,1765843847945,-1000.0,0.00013821,2]
[398571723,1765843847953,-500.0,0.00013821,2]
[398571724,1765843847963,-500.0,0.00013821,2]
[398571725,1765843847972,-500.0,0.00013821,2]
[398571726,1765843847980,-1001.77259446,0.00013821,2]
[398571727,1765843847989,-1002.53621644,0.00013821,2]
[398571728,1765843847998,-1000.0,0.00013821,2]
[398571729,1765843848007,-1000.0,0.00013821,2]
[398571730,1765843848016,-1000.0,0.00013821,2]
[398571731,1765843848024,-17571.13591639,0.0001388,2]
[398571732,1765843848033,-151.0,0.0001388,2]
[398571733,1765843848042,-151.0,0.0001388,2]
[398571734,1765843848050,-151.0,0.0001388,2]
[398571735,1765843848059,-345.74,0.000139,2]
[398571736,1765843848068,-218.55983586,0.00013916,2]
[398571737,1765843848077,-228.98180743,0.00013992,2]
[398571738,1765843848086,-228.99222941,0.00013992,2]
[398571739,1765843848095,-345.74,0.00014,2]
[398571740,1765843848104,-345.74,0.00014,2]
[398571741,1765843848113,-500.0,0.00014008,2]
[398571742,1765843848121,-345.74,0.000141,2]
[398571743,1765843848131,-500.0,0.00014145,2]
[398571744,1765843848140,-155.76765215,0.00014146,2]
[398571745,1765843848149,-405.54404702,0.00014151,2]
[398571746,1765843848158,-345.74,0.000142,2]
[398571747,1765843848166,-345.74,0.000142,2]
[398571748,1765843848176,-1000.0,0.00014247,2]
[398571749,1765843848185,-698.23267639,0.00014247,2]
[398571750,1765843848193,-1000.96774051,0.00014247,2]
[398571751,1765843848202,-1000.35596187,0.00014247,2]
[398571752,1765843848211,-284.84269995,0.00014247,2]
[398571753,1765843848220,-1000.57684366,0.00014247,2]
[398571754,1765843848229,-1000.42136933,0.00014247,2]
[398571755,1765843848238,-1000.88558295,0.00014247,2]
[398571756,1765843848247,-1001.69450208,0.00014247,2]
[398571757,1765843848256,-1001.55115515,0.00014247,2]
[398571758,1765843848266,-500.67222143,0.00014247,2]
[398571759,1765843848275,-739.20580255,0.00014247,2]
[398571760,1765843848284,-500.0,0.00014247,2]
[398571761,1765843848292,-184.98776904,0.00014247,2]
[398571762,1765843848301,-1000.80364139,0.00014247,2]
[398571763,1765843848310,-1001.04297309,0.00014247,2]
[398571764,1765843848318,-1001.47096379,0.00014247,2]
[398571765,1765843848327,-202.21694988,0.00014247,2]
[398571766,1765843848337,-500.77790251,0.00014247,2]
[398571767,1765843848346,-524.30813679,0.00014247,2]
[398571768,1765843848355,-501.38282436,0.00014247,2]
[398571769,1765843848364,-500.6320925,0.00014247,2]
[398571770,1765843848373,-500.0,0.00014247,2]
[398571771,1765843848382,-500.38306836,0.00014247,2]
[398571772,1765843848391,-503.51294868,0.00014247,2]
[398571773,1765843848400,-1000.0,0.00014247,2]
[398571774,1765843848409,-1001.82041908,0.00014247,2]
[398571775,1765843848418,-151.935492,0.00014247,2]
[398571776,1765843848428,-500.0,0.00014282,2]
[398571777,1765843848437,-345.74,0.000143,2]
[398571778,1765843848447,-345.74,0.000143,2]
[398571779,1765843848456,-260.0,0.000143,2]
[398571780,1765843848465,-229.22100308,0.00014335,2]
[398571781,1765843848475,-354.66309047,0.00014368,2]
[398571782,1765843848484,-638.39356285,0.00014368,2]
[398571783,1765843848493,-151.0,0.00014368,2]
[398571784,1765843848502,-151.0,0.00014368,2]
[398571785,1765843848511,-1134.92188951,0.00014368,2]
[398571786,1765843848521,-500.0,0.00014368,2]
[398571787,1765843848530,-1502.66977793,0.00014368,2]
[398571788,1765843848539,-1010.83636242,0.00014368,2]
[398571789,1765843848548,-1500.0,0.00014368,2]
[398571790,1765843848558,-1500.0,0.00014368,2]
[398571791,1765843848567,-345.74,0.000144,2]
[398571792,1765843848580,-500.0,0.00014419,2]
[398571793,1765843848589,-345.74,0.000145,2]
[398571794,1765843848598,-345.74,0.000145,2]
[398571795,1765843848607,-247.35775812,0.00014556,2]
[398571796,1765843848616,-345.74,0.000146,2]
[398571797,1765843848626,-387.6409003,0.00014608,2]
[398571798,1765843848635,-1176.974,0.00014662,2]
[398571799,1765843848645,-2155.0,0.00014662,2]
[398571800,1765843848654,-13191.8772795,0.00014671,2]
[398571801,1765843848663,-151.0,0.00014671,2]
[398571802,1765843848673,-195.08789713,0.000147,2]
[398571803,1765843848682,-345.74,0.000147,2]
[398571804,1765843848692,-345.74,0.000147,2]
[398571805,1765843848701,-1773.31545236,0.00014711,2]
[398571806,1765843848710,-1143.60122599,0.00014795,2]
[398571807,1765843848719,-1294.9527478,0.00014795,2]
[398571808,1765843848729,-345.74,0.000148,2]
[398571809,1765843848738,-360.0,0.00014848,2]
[398571810,1765843848747,-1152.0,0.00014851,2]
[398571811,1765843848756,-155.76765215,0.000149,2]
[398571812,1765843848766,-345.74,0.000149,2]
[398571813,1765843848775,-345.74,0.000149,2]
[398571814,1765843848784,-2000.0,0.00014916,2]
[398571815,1765843848793,-1512.44532896,0.00014916,2]
[398571816,1765843848802,-195.76525679,0.00015,7]
[398571817,1765844494615,321.32,0.00014,30]
[398571819,1765844719291,160.0,0.00014,30]
[398571820,1765844738758,160.0,0.00019,120]
[398571821,1765844773560,160.0,0.00014,30]
[398571822,1765844804663,160.0,0.00019,120]
[398571823,1765844833682,-300.0,0.00010899,2]
[398571824,1765844833703,-304.81905032,0.000109,2]
[398571825,1765844833723,-310.21289695,0.000109,2]
[398571826,1765844835517,180.0,0.00014,30]
[398571827,1765844854445,180.0,0.00019,120]
[398571828,1765844904067,288.44861841,0.0001,2]
[398571829,1765844904355,9711.56138159,0.00010024,2]
[398571830,1765844904391,10000.01,0.00010024,2]
[398571831,1765844904427,1023.65283581,0.00010024,2]
[398571832,1765844913091,1000.0,0.0001,2]
[398571833,1765844919582,10000.01,0.0001,2]
[398571834,1765844919604,5033.86445617,0.0001,2]
[398571835,1765844920093,2912.83485562,0.0001,2]
[398571836,1765844923654,1762.4354187,8.9e-05,2]
[398571837,1765844948409,150.0,7.698e-05,2]
[398571869,1765845032102,-300.0,0.00010899,2]
[398571870,1765845032112,-573.0,0.00010899,2]
[398571871,1765845032124,-129.31568725,0.000109,2]
[398571968,1765845038274,-169.40698206,0.000109,2]
[398571969,1765845038286,-754.02474585,0.000109,2]
[398571970,1765845038300,-322.24925186,0.000109,2]
[398571971,1765845038313,-3393.27706792,0.000109,2]
[398571973,1765845040293,-5530.44893437,0.000109,2]
[398571974,1765845040303,-284.67544527,0.00010958,2]
[398571975,1765845040312,-500.0,0.00010958,2]
[398571976,1765845040321,-500.0,0.00010958,2]
[398571977,1765845040330,-503.64081499,0.00010958,2]
[398571978,1765845040339,-532.32491735,0.00010958,2]
[398571979,1765845040348,-500.0,0.00010958,2]
[398571980,1765845040357,-500.0,0.00010958,2]
[398571981,1765845040366,-495.03874456,0.00010958,2]
[398571982,1765845040375,-500.0,0.00010959,2]
[398571983,1765845040384,-999.0,0.00010959,2]
[398571984,1765845040393,-500.0,0.00010959,2]
[398571985,1765845040403,-500.0,0.00010959,2]
[398571986,1765845040413,-500.0,0.00010959,2]
[398571987,1765845040422,-500.0,0.00010959,2]
[398571988,1765845040431,-500.0,0.00010959,2]
[398571989,1765845040440,-500.0,0.00010959,2]
[398571990,1765845040449,-500.0,0.00010959,2]
[398571991,1765845040459,-500.0,0.00010959,2]
[398571992,1765845040471,-500.0,0.00010959,2]
[398571993,1765845040480,-500.0,0.00010959,2]
[398571994,1765845040489,-500.0,0.00010959,2]
[398571995,1765845040499,-500.0,0.00010959,2]
[398571996,1765845040508,-500.0,0.00010959,2]
[398571997,1765845040518,-359.54386903,0.00010959,2]
[398571998,1765845040528,-500.0,0.00010959,2]
[398571999,1765845040537,-500.0,0.00010959,2]
[398572000,1765845040546,-500.0,0.00010959,2]
[398572001,1765845040556,-500.0,0.00010959,2]
[398572002,1765845040565,-500.0,0.00010959,2]
[398572003,1765845040574,-500.0,0.00010959,2]
[398572004,1765845040584,-500.0,0.00010959,2]
[398572005,1765845040593,-500.0,0.00010959,2]
[398572006,1765845040602,-500.0,0.00010959,2]
[398572007,1765845040612,-500.0,0.00010959,2]
[398572008,1765845040621,-500.0,0.00010959,2]
[398572009,1765845040630,-500.0,0.00010959,2]
[398572010,1765845040640,-500.0,0.00010959,2]
[398572011,1765845040649,-500.0,0.00010959,2]
[398572012,1765845040658,-500.0,0.00010959,2]
[398572013,1765845040667,-500.0,0.00010959,2]
[398572014,1765845040676,-500.0,0.00010959,2]
[398572015,1765845040685,-500.0,0.00010959,2]
[398572016,1765845040694,-500.0,0.00010959,2]
[398572017,1765845040703,-500.0,0.00010959,2]
[398572018,1765845040712,-500.0,0.00010959,2]
[398572019,1765845040721,-500.0,0.00010959,2]
[398572020,1765845040731,-500.0,0.00010959,2]
[398572021,1765845040740,-500.0,0.00010959,2]
[398572022,1765845040749,-500.0,0.00010959,2]
[398572023,1765845040758,-500.0,0.00010959,2]
[398572024,1765845040767,-350.0,0.00010959,2]
[398572025,1765845040776,-500.0,0.00010959,2]
[398572026,1765845040785,-500.0,0.00010959,2]
[398572027,1765845040794,-500.0,0.00010959,2]
[398572028,1765845040803,-500.0,0.00010959,2]
[398572029,1765845040813,-500.0,0.00010959,2]
[398572030,1765845040823,-500.0,0.00010959,2]
[398572032,1765845040831,-500.0,0.00010959,2]
[398572034,1765845040841,-500.0,0.00010959,2]
[398572036,1765845040850,-500.0,0.00010959,2]
[398572038,1765845040859,-500.0,0.00010959,2]
[398572040,1765845040868,-500.0,0.00010959,2]
[398572042,1765845040877,-500.0,0.00010959,2]
[398572043,1765845040886,-500.0,0.00010959,2]
[398572045,1765845040895,-500.0,0.00010959,2]
[398572046,1765845040904,-500.0,0.00010959,2]
[398572047,1765845040913,-500.0,0.00010959,2]
[398572048,1765845040922,-500.0,0.00010959,2]
[398572049,1765845040931,-250.0,0.00010959,2]
[398572050,1765845040940,-500.0,0.00010959,2]
[398572051,1765845040949,-500.0,0.00010959,2]
[398572052,1765845040958,-281.0,0.00011,2]
[398572053,1765845040967,-500.0,0.00011,2]
[398572054,1765845040976,-300.0,0.00011177,2]
[398572055,1765845040985,-300.0,0.00011177,2]
[398572056,1765845040994,-300.0,0.00011177,2]
[398572057,1765845041003,-300.0,0.00011177,2]
[398572058,1765845041013,-300.0,0.00011177,2]
[398572059,1765845041022,-300.0,0.00011177,2]
[398572060,1765845041030,-300.0,0.00011177,2]
[398572061,1765845041040,-300.0,0.00011177,2]
[398572062,1765845041049,-300.0,0.00011177,2]
[398572063,1765845041058,-300.0,0.00011177,2]
[398572064,1765845041068,-300.0,0.00011177,2]
[398572065,1765845041081,-300.0,0.00011177,2]
[398572066,1765845041091,-300.0,0.00011177,2]
[398572067,1765845041100,-300.0,0.00011177,2]
[398572068,1765845041109,-300.0,0.00011177,2]
[398572069,1765845041118,-600.0,0.00011177,2]
[398572070,1765845041127,-500.0,0.00011233,2]
[398572071,1765845041136,-48158.57327245,0.00011297,2]
[398572072,1765845041145,-420.0,0.00011978,2]
[398572073,1765845041155,-500.0,0.00012,2]
[398572074,1765845041164,-153.83,0.00012,2]
[398572075,1765845041173,-632.0,0.00012118,2]
[398572076,1765845041182,-2156.0,0.00012118,2]
[398572077,1765845041192,-415.0,0.00012118,2]
[398572078,1765845041201,-720.0,0.00012295,2]
[398572079,1765845041212,-153.83,0.000123,2]
[398572080,1765845041221,-153.83,0.000125,2]
[398572081,1765845041231,-239.8455079,0.00012603,2]
[398572082,1765845041240,-153.83,0.000128,2]
[398572083,1765845041250,-352.49274979,0.000129,2]
[398572084,1765845041259,-4087.551915,0.000129,2]
[398572085,1765845041268,-153.83,0.00013,2]
[398572086,1765845041278,-587.0,0.00013164,2]
[398572087,1765845041287,-500.0,0.00013273,2]
[398572088,1765845041297,-501.06306379,0.00013273,2]
[398572089,1765845041306,-500.0,0.00013273,2]
[398572090,1765845041315,-501.28636889,0.00013273,2]
[398572091,1765845041325,-153.83,0.000133,2]
[398572092,1765845041335,-160.0,0.00013318,2]
[398572093,1765845041345,-198.08824625,0.00013318,2]
[398572094,1765845041354,-530.34130518,0.00013423,2]
[398572095,1765845041363,-333.0,0.00013423,2]
[398572096,1765845041373,-7623.11381563,0.00013423,2]
[398572097,1765845041383,-864.0,0.00013524,2]
[398572098,1765845041392,-285.2,0.000136,2]
[398572099,1765845041402,-153.83,0.000136,2]
[398572100,1765845041411,-500.0,0.00013698,2]
[398572101,1765845041420,-500.0,0.00013698,2]
[398572102,1765845041429,-1443.528573,0.00013699,2]
[398572103,1765845041439,-500.0,0.00013699,2]
[398572104,1765845041448,-500.0,0.00013699,2]
[398572105,1765845041457,-500.0,0.00013699,2]
[398572106,1765845041468,-500.0,0.00013699,2]
[398572107,1765845041477,-500.20763168,0.00013699,2]
[398572108,1765845041487,-500.34569276,0.00013699,2]
[398572109,1765845041496,-500.0,0.00013699,2]
[398572110,1765845041505,-345.84921265,0.00013699,2]
[398572111,1765845041514,-606.91542145,0.00013699,2]
[398572112,1765845041523,-500.0,0.00013699,2]
[398572113,1765845041533,-500.0,0.00013699,2]
[398572114,1765845041542,-500.0,0.00013699,2]
[398572115,1765845041551,-500.0,0.00013699,2]
[398572116,1765845041561,-500.65960684,0.00013699,2]
[398572117,1765845041570,-500.0,0.00013699,2]
[398572118,1765845041579,-573.0,0.000137,2]
[398572119,1765845041589,-331.083,0.000138,2]
[398572120,1765845041598,-153.83,0.000138,2]
[398572121,1765845041607,-500.0,0.00014,2]
[398572122,1765845041616,-153.83,0.000141,2]
[398572123,1765845041625,-220.91964792,0.00014147,2]
[398572124,1765845041635,-606.74694375,0.00014247,2]
[398572125,1765845041644,-500.2707144,0.00014247,2]
[398572126,1765845041653,-248.735427,0.00014247,2]
[398572127,1765845041662,-500.90910416,0.00014247,2]
[398572128,1765845041672,-1000.74990062,0.00014247,2]
[398572129,1765845041681,-500.45021216,0.00014247,2]
[398572130,1765845041690,-500.30958957,0.00014247,2]
[398572131,1765845041699,-499.10409344,0.00014247,2]
[398572132,1765845041708,-150.0,0.00014282,2]
[398572133,1765845041718,-150.0,0.00014282,2]
[398572134,1765845041727,-500.0,0.00014282,2]
[398572135,1765845041737,-153.3377025,0.00014282,2]
[398572136,1765845041746,-150.0,0.00014282,2]
[398572137,1765845041755,-150.0,0.00014282,2]
[398572138,1765845041764,-153.83,0.000143,2]
[398572139,1765845041774,-220.91964789,0.00014343,2]
[398572140,1765845041783,-2551.02067715,0.00014368,2]
[398572141,1765845041792,-367.22839101,0.00014368,2]
[398572142,1765845041800,-258.93061947,0.00014368,2]
[398572143,1765845041809,-404.25130854,0.00014368,2]
[398572144,1765845041819,-600.0,0.000144,2]
[398572145,1765845041830,-152.0,0.00014419,2]
[398572146,1765845041839,-152.0,0.00014419,2]
[398572147,1765845041848,-500.94323605,0.00014419,2]
[398572148,1765845041856,-150.0,0.00014419,2]